[Event "Czech Open-Rapid 2022"]
[Site "Pardubice"]
[Date "2022.07.21"]
[Round "5.31"]
[White "Juchelka, Marek"]
[Black "Ibrahim, Emad Eldin"]
[Result "0-1"]
[ECO "B27"]
[WhiteElo "1803"]
[BlackElo "2028"]
[Annotator "TA"]
[PlyCount "130"]
[EventDate "2022.07.20"]
[EventType "swiss"]
[EventCountry "CZE"]
[SourceTitle "playchess.com"]
[Source "ChessBase"]
[SourceQuality "1"]
[TimeControl "1200+10"]

{[%evp 18,130,-23,-36,0,-17,-6,-8,-8,-19,-18,-60,-44,-68,-66,-152,-143,-141,-132,-233,-212,-150,-18,-10,-16,-15,0,0,0,-65,-64,-64,-64,-62,-54,-54,-41,-170,-151,-147,-139,-275,-258,-1027,-995,-881,-1008,-951,-418,-406,-410,-400,-390,-368,-358,-428,-411,-385,-317,-328,-330,-306,-315,-369,-334,-328,-320,-644,-649,-602,-575,-779,-780,-741,-708,-579,-372,-1731,-1687,-1371,-1119,-2142,-1624,-1598,-1221,-1575,-1554,-1835,-1768,-29979,-29980,-29982,-29983,-29983,-29982,-29982,-29983,-29984,-29978,-29978,-29980,-29980,-29981,-29980,-29982,-29983,-29984,-29985,-29984,-29986,-29987,-29987,-29987,-29988,-29989]} 1. e4 {[%emt 0:00:02]} c5 {[%emt 0:00:04]} 2. Nf3 {[%emt 0:00:03]} g6 {[%emt 0:00:01]} 3. c3 {[%emt 0:00:01]} Bg7 {[%emt 0:00:04]} 4. d4 {[%emt 0:00:01]} cxd4 {[%emt 0:00:02]} 5. cxd4 {[%emt 0:00:02]} d5 {[%emt 0:00:01]} 6. e5 {[%emt 0:00:07]} Bg4 {[%emt 0:00:04]} 7. Be2 {[%emt 0:00:06]} Nc6 {[%emt 0:00:02]} 8. Nc3 {[%emt 0:00:03]} Nh6 {[%emt 0:00:32] was the old line (8...e6).} 9. h3 {[%emt 0:00:40]} Bxf3 {[%emt 0:00:04]} 10. Bxf3 {[%emt 0:00:02]} (10. gxf3 Nf5 11. Be3 e6 $17) 10... Nf5 {[%emt 0:00:14] B27: Sicilian: 2 Nf3, unusual Black 2nd moves.} 11. Bxd5 {[%emt 0:05:15]} Nfxd4 {[%emt 0:01:21]} 12. f4 {[%emt 0:03:08]} Qb6 {[%emt 0:01:11] The position is equal.} 13. Bxc6+ {[%emt 0:00:54] [#]} bxc6 $146 {[%emt 0:00:02]} ({Predecessor:} 13... Nxc6 14. Qb3 Qxb3 15. axb3 O-O 16. Be3 Rfd8 17. O-O Rd3 18. Bf2 Bh6 19. g3 Rad8 {0-1 (57) Pluta,P (1674)-Slusnys,E (1888) Panevezys 2016}) 14. Na4 {[%emt 0:00:23]} Qb4+ {[%emt 0:00:26]} 15. Bd2 {[%emt 0:00:01]} Qb5 {[%emt 0:00:02]} 16. Rb1 {[%emt 0:01:33]} (16. Bc3 Ne6 17. Bd2 Rd8 $19) (16. Nc3 $15 Qxb2 17. Rb1) 16... Rd8 $17 {[%emt 0:00:33] Hoping for ...Qd3.} ({And not} 16... Qd3 17. Nc5 Qg3+ 18. Kf1 $11) 17. Nc3 {[%emt 0:00:01]} Qd3 {[%emt 0:00:10]} 18. Rc1 {[%emt 0:00:20] Inhibits Nc2+.} (18. Bc1 $17 {was worth a try.} Qg3+ 19. Kf1) 18... O-O {[%emt 0:01:07]} 19. Ne2 {[%emt 0:00:12]} Nxe2 {[%emt 0:00:22] 0x0.0019ec59c85cdp-1022s more active pieces.} (19... Qe4 $17 20. Kf2 f6 21. Nxd4 Rxd4) 20. Qxe2 $11 {[%emt 0:00:02]} Qg3+ {[%emt 0:00:02]} 21. Kf1 {[%emt 0:00:20]} Rd3 {[%emt 0:00:38]} 22. h4 {[%emt 0:00:53] [#] And now Rh3 would win.} ({Reject} 22. Rxc6 Rfd8 23. Qe1 {[#]} Rf3+ $1 24. Kg1 Qxe1+ 25. Bxe1 Rxf4 $17) 22... Rd4 {[%emt 0:02:15]} 23. Rc3 {[%emt 0:01:42]} ({White should try} 23. Kg1 $11 Qd3 24. Qxd3 Rxd3 25. Bc3) 23... Rxf4+ $15 {[%emt 0:00:07]} 24. Bxf4 {[%emt 0:00:12]} Qxf4+ {[%emt 0:00:01]} 25. Kg1 {[%emt 0:00:40]} Bxe5 {[%emt 0:00:09]} 26. g3 {[%emt 0:01:34]} Qd4+ {[%emt 0:03:11]} 27. Re3 {[%emt 0:00:38] White does not recover from this.} ({White should play} 27. Kg2 $15) 27... Bxg3 {[%emt 0:00:24] aiming for ...Bf4.} 28. Kg2 {[%emt 0:00:13]} Bd6 {[%emt 0:00:19]} 29. h5 {[%emt 0:00:19]} (29. Re4 $17 Qd5 30. Qc4) 29... Rb8 $19 {[%emt 0:00:14]} 30. b3 {[%emt 0:00:09]} (30. Rd1 Qf4 31. Rb3) 30... Rb5 {[%emt 0:01:00] White must now prevent ...Rg5+.} 31. Rhh3 {[%emt 0:01:58]} Rg5+ {[%emt 0:00:31]} 32. Kh1 {[%emt 0:00:32]} Qd5+ {[%emt 0:00:09]} (32... Bf4 $142 33. hxg6 Rxg6) 33. Qf3 {[%emt 0:00:22]} Qd2 {[%emt 0:00:08] ( -> ...Qc1+)} 34. Qe2 {[%emt 0:00:07]} Qc1+ {[%emt 0:00:22]} 35. Qe1 {[%emt 0:00:11]} Qc2 {[%emt 0:01:15][%csl Gg5][%cal Rc2g2]} 36. Qe2 {[%emt 0:00:01] Inhibits Qg2+.} Qb1+ {[%emt 0:00:12]} 37. Qe1 {[%emt 0:00:29]} Qxa2 {[%emt 0:00:04][%csl Gg5][%cal Ra2g2]} 38. Re2 {[%emt 0:00:08] Inhibits Qg2+.} Qa6 {[%emt 0:00:28] ...Qb5 is the strong threat.} 39. hxg6 {[%emt 0:00:07]} hxg6 {[%emt 0:00:30] Threatens to win with ...Qb5.} ({But not} 39... Rxg6 $2 40. Rd2 $19) 40. Rg2 {[%emt 0:01:12]} Rxg2 {[%emt 0:01:53]} 41. Kxg2 {[%emt 0:00:02][%mdl 4096] Endgame KQR-KQB} Qa2+ {[%emt 0:00:03]} 42. Qf2 $2 {[%emt 0:00:10]} (42. Kf1) 42... Qxf2+ {[%emt 0:00:52]} 43. Kxf2 {[%emt 0:00:01] KR-KB} f5 {[%emt 0:00:20]} 44. Kf3 {[%emt 0:00:33]} Kg7 {[%emt 0:00:08]} 45. Rh1 {[%emt 0:00:02]} Kf6 {[%emt 0:00:15]} 46. Ra1 {[%emt 0:00:05]} Bc5 {[%emt 0:00:05]} 47. Ra6 $2 {[%emt 0:00:03]} (47. Rc1 Bd6 48. Ke2) 47... Bb6 {[%emt 0:00:02]} 48. Ra2 {[%emt 0:00:08]} g5 {[%emt 0:00:05][%cal Bg6g5,Bg5g4][%mdl 32]} 49. Rc2 {[%emt 0:00:07]} g4+ {[%emt 0:00:02]} 50. Kg3 {[%emt 0:00:23]} c5 {[%emt 0:00:02][%cal Bc6c5,Bc5c4][%mdl 32] Strongly threatening ...Kg5.} 51. Rd2 {[%emt 0:00:03]} Kg5 {[%emt 0:00:27]} 52. Rd7 {[%emt 0:00:21]} f4+ {[%emt 0:00:04]} 53. Kf2 {[%emt 0:00:19]} c4+ {[%emt 0:00:15] Black mates.} 54. Kg2 {[%emt 0:00:07]} cxb3 {[%emt 0:00:03]} 55. Rd5+ {[%emt 0:00:08]} Kf6 {[%emt 0:00:07]} 56. Rb5 {[%emt 0:00:01]} e5 {[%emt 0:00:03][%cal Be7e5,Be5e4][%mdl 32]} 57. Rxb3 {[%emt 0:00:02]} Kf5 {[%emt 0:00:02]} 58. Rb5 {[%emt 0:00:03]} f3+ {[%emt 0:00:09][%cal Bf4f3,Bf3f2][%mdl 32]} 59. Kg3 {[%emt 0:00:09]} f2 {[%emt 0:00:02]} 60. Kg2 {[%emt 0:00:04]} Kf4 {[%emt 0:00:03]} 61. Rd5 {[%emt 0:00:31]} e4 {[%emt 0:00:14]} 62. Rd7 {[%emt 0:00:05]} Ke3 {[%emt 0:00:33]} 63. Re7 {[%emt 0:00:10]} g3 {[%emt 0:00:14]} 64. Re6 {[%emt 0:00:16]} Kd3 {[%emt 0:00:08]} 65. Rd6+ {[%emt 0:00:18]} Bd4 {[%emt 0:00:24] Weighted Error Value: White=0.75/Black=0.28 (precise)} 0-1

[Event "Czech Open-Rapid 2022"]
[Site "Pardubice"]
[Date "2022.07.21"]
[Round "5.32"]
[White "Maul, Maik"]
[Black "Sosnik, Sebastian"]
[Result "1-0"]
[ECO "A45"]
[WhiteElo "1568"]
[BlackElo "2255"]
[Annotator "TA"]
[PlyCount "109"]
[EventDate "2022.07.20"]
[EventType "swiss"]
[EventCountry "CZE"]
[SourceTitle "playchess.com"]
[Source "ChessBase"]
[SourceQuality "1"]
[TimeControl "1200+10"]

{[%evp 9,109,23,40,24,25,32,23,32,63,60,56,54,135,100,143,120,174,179,214,112,123,64,104,16,21,-71,-75,-110,-93,-95,-92,-97,-100,-107,-116,-146,-141,-158,-137,-200,-104,-202,-147,-171,-86,-162,-152,-190,-197,-386,-343,-350,-151,-159,-93,-96,-37,-222,-150,-154,0,0,0,0,0,0,43,-116,-117,-124,-57,-145,-97,-354,-276,-282,0,0,0,0,0,0,0,0,0,0,0,0,0,0,70,70,482,403,5113,5106,2147,363,290,309,29990,29991]} 1. d4 {[%emt 0:00:03]} Nf6 {[%emt 0:00:04]} 2. Nc3 {[%emt 0:00:01]} c5 {[%emt 0:00:18]} 3. d5 {[%emt 0:00:01]} d6 {[%emt 0:00:57]} 4. e4 {[%emt 0:00:02]} g6 {[%emt 0:00:03]} 5. Bf4 {[%emt 0:00:01]} Bg7 {[%emt 0:00:04]} 6. Qd2 {[%emt 0:00:02] A43: Schmid Benoni.} O-O {[%emt 0:01:53]} 7. Bh6 {[%emt 0:00:04]} a6 {[%emt 0:00:42]} 8. h4 {[%emt 0:00:26][%cal Bh2h4,Bh4h5][%mdl 32] White has an edge.} Bxh6 {[%emt 0:04:06]} 9. Qxh6 {[%emt 0:00:03][%cal Oh4h5]} Ng4 {[%emt 0:00:04]} 10. Qd2 {[%emt 0:00:05] [#]} f5 $146 {[%emt 0:02:09]} (10... Nd7 $14) ({Predecessor:} 10... h5 11. f3 Nf6 12. Qh6 Nbd7 13. Nh3 b5 14. Ng5 Re8 15. g4 Nf8 16. gxh5 Nxh5 {1-0 (29) Berghoefer,G (2379)-Kreutz,J (2248) ICCF email 2014}) 11. f3 {[%emt 0:00:17]} Ne5 {[%emt 0:00:14]} 12. O-O-O {[%emt 0:00:23]} b5 {[%emt 0:00:34]} (12... Qe8 $16 {was called for.}) 13. h5 $1 $18 {[%emt 0:00:12]} Rf6 {[%emt 0:02:42]} 14. Be2 {[%emt 0:06:05]} (14. hxg6 $18 {Strongly threatening Qh6.} Rxg6 15. exf5 Bxf5 16. Nce2) 14... b4 $16 {[%emt 0:01:00]} 15. Nb1 {[%emt 0:00:07]} (15. f4 $1 $16 {[%cal Rf4e5]}) 15... f4 {[%emt 0:00:30]} 16. Nh3 {[%emt 0:00:26]} (16. hxg6 $16 Nxg6 17. Qe1) 16... Bxh3 $11 {[%emt 0:01:03]} 17. Rxh3 {[%emt 0:00:28]} (17. hxg6 $1 $11 Bd7 18. gxh7+ Kh8 19. g3 fxg3 20. f4) 17... g5 $1 $36 {[%emt 0:01:16][%mdl 2048] Keeping White busy.} ({Don't do} 17... Nbd7 18. hxg6 Nxg6 19. Rdh1 $11) 18. g3 {[%emt 0:00:40]} Qd7 {[%emt 0:01:00]} 19. Rdh1 {[%emt 0:00:37]} h6 $1 {[%emt 0:00:13]} 20. gxf4 {[%emt 0:00:22]} Rxf4 {[%emt 0:00:05]} 21. Rg3 {[%emt 0:00:08]} Kh7 {[%emt 0:00:48]} 22. c3 {[%emt 0:00:13]} Qa4 {[%emt 0:00:40]} 23. b3 {[%emt 0:00:33]} Qa5 {[%emt 0:00:14]} 24. c4 {[%emt 0:00:15]} (24. Kb2 $17) 24... Nbd7 {[%emt 0:00:05]} (24... Qd8 $19 25. a3 bxa3 26. Nxa3 a5) 25. Qc2 {[%emt 0:01:34]} (25. a4 $17) 25... Raf8 {[%emt 0:00:12]} 26. Nd2 {[%emt 0:00:05]} Qa3+ {[%emt 0:01:27]} (26... Qd8 $1 $19 27. Bf1 Kg7) 27. Kb1 {[%emt 0:00:19]} (27. Kd1 $17) 27... a5 $1 $19 {[%emt 0:00:23]} 28. Nf1 {[%emt 0:02:35]} a4 {[%emt 0:00:16]} (28... Nxf3 $2 29. e5+ Kh8 30. Qg6 $18) 29. Ne3 $2 {[%emt 0:00:34]} (29. Nd2 {was the only chance.}) 29... axb3 {[%emt 0:00:30]} 30. axb3 {[%emt 0:00:02]} Ra8 {[%emt 0:00:04]} (30... Nxf3 $19 {is more deadly. aiming for ...Nd4.} 31. e5+ Kh8) 31. Qb2 $17 {[%emt 0:00:01]} Qxb2+ {[%emt 0:00:58]} (31... Rff8 $142 {And now ...Ra6 would win.} 32. Kc2 Ra7) 32. Kxb2 {[%emt 0:00:01]} Nf6 {[%emt 0:00:10]} (32... Ra7 $17) 33. Nf5 $2 {[%emt 0:00:24]} (33. Ng2 $15 Nxe4 34. fxe4) 33... Ra7 {[%emt 0:00:03]} 34. Ne3 {[%emt 0:01:08] [#]} Rh4 $2 {[%emt 0:00:13]} (34... g4 $1 $17 {[%cal Rg4f3]} 35. Nxg4 Nfxg4 36. fxg4 Rf2) 35. Rxh4 $11 {[%emt 0:00:15]} gxh4 {[%emt 0:00:01]} 36. Rh3 {[%emt 0:00:04]} Nxh5 {[%emt 0:00:09]} 37. Rxh4 {[%emt 0:00:05]} Ng3 {[%emt 0:00:13]} 38. Rh2 {[%emt 0:00:04]} (38. Bd1 $1 $14 {was forced to keep a grip.}) 38... Nxe2 $17 {[%emt 0:00:05]} 39. Rxe2 {[%emt 0:00:01]} Nxf3 {[%emt 0:00:02][%mdl 4096] Endgame KRN-KRN} (39... Nd3+ $17 40. Kc2 Nf4) 40. Rf2 {[%emt 0:00:04]} (40. Nf5 $15) 40... Nd4 {[%emt 0:00:35]} (40... Ne5 $142 {Hoping for ...Nd3+.} 41. Rf1 Kg6 42. Rg1+ Kf6 43. Rf1+ Kg5 44. Rf5+ Kg6) 41. e5 {[%emt 0:01:31][%mdl 8192]} (41. Nf5 $17) 41... dxe5 {[%emt 0:00:15]} 42. Ng4 {[%emt 0:00:07]} Ra3 $2 {[%emt 0:00:13]} (42... e4 $19 {...h5 is the strong threat.} 43. Rf7+ Kg6) 43. Rf7+ $11 {[%emt 0:00:18]} Kh8 44. Rxe7 {[%emt 0:00:25]} Rxb3+ {[%emt 0:00:25]} 45. Ka2 {[%emt 0:00:01]} Ra3+ {[%emt 0:00:11]} 46. Kb2 {[%emt 0:00:02]} Rb3+ {[%emt 0:00:03]} 47. Ka2 {[%emt 0:00:01] White threatens Nf6 and mate.} Ra3+ {[%emt 0:00:25]} 48. Kb2 {[%emt 0:00:01] Intending Nf6 and mate.} Rb3+ {[%emt 0:00:00]} 49. Ka2 {[%emt 0:00:04] Threatening mate with Nf6.} Rf3 {[%emt 0:00:02] Prevents Nf6.} ({Black should play} 49... e4 $11) 50. d6 $1 $14 {[%emt 0:00:07][%cal Bd5d6,Bd6d7][%mdl 1056] Threatens to win with d7. White has compensation.} b3+ $2 {[%emt 0:00:03][%mdl 8192]} ({Black should try} 50... e4 $14) 51. Kb2 {[%emt 0:00:01]} Rf4 {[%emt 0:00:24]} (51... Rf8 $142 52. Nxe5 Rf2+ 53. Kc3 b2) 52. d7 $18 {[%emt 0:00:05]} Nc6 {[%emt 0:00:02] [#]} 53. Re8+ $2 {[%emt 0:00:01]} (53. Nxe5 $1 Rf2+ 54. Kxb3 Nxe7 55. d8=Q+ Ng8 56. Qc7) 53... Kg7 {[%emt 0:00:01]} 54. Nxe5 {[%emt 0:00:01]} Kf6 $2 {[%emt 0:00:18]} (54... Rd4 $18 55. Nxc6 Rxd7) 55. Nxc6 {[%emt 0:00:02] What a fight!  Weighted Error Value: White=0.62/Black=0.67} 1-0

[Event "Czech Open-Rapid 2022"]
[Site "Pardubice"]
[Date "2022.07.21"]
[Round "5.33"]
[White "Nespurek, Jakub"]
[Black "Krak, Tomas"]
[Result "0-1"]
[ECO "B22"]
[WhiteElo "1442"]
[BlackElo "2312"]
[Annotator "TA"]
[PlyCount "68"]
[EventDate "2022.07.20"]
[EventType "swiss"]
[EventCountry "CZE"]
[SourceTitle "playchess.com"]
[Source "ChessBase"]
[SourceQuality "1"]
[TimeControl "1200+10"]

{[%evp 20,68,34,6,16,-8,-12,-54,-41,-56,-47,-46,-14,-41,-48,-56,-6,-158,-160,-184,-64,-64,-48,-56,-62,-76,-86,-127,-114,-123,-102,-120,-115,-118,-118,-129,-130,-296,-103,-673,-902,-885,-601,-931,-930,-901,-811,-882,-884,-796,-661]} 1. e4 {[%emt 0:00:03]} c5 {[%emt 0:00:01][%cal Bc7c5,Bc5c4][%mdl 32]} 2. c3 {[%emt 0:00:01]} e6 {[%emt 0:00:12]} 3. d4 {[%emt 0:00:03]} d5 {[%emt 0:00:01]} 4. exd5 {[%emt 0:00:10]} exd5 {[%emt 0:00:01]} 5. Be3 {[%emt 0:00:55]} c4 {[%emt 0:00:12]} 6. Nf3 {[%emt 0:00:12]} Bd6 {[%emt 0:00:22]} 7. Be2 {[%emt 0:00:16]} Ne7 {[%emt 0:00:06]} 8. O-O {[%emt 0:00:12]} Nbc6 {[%emt 0:00:15]} 9. b3 {[%emt 0:00:34]} cxb3 {[%emt 0:00:06]} 10. axb3 {[%emt 0:00:04]} O-O {[%emt 0:00:25]} 11. c4 {[%emt 0:01:25] [#]} Be6 $146 {[%emt 0:02:18] B22: Sicilian: 2 c3.} ({Predecessor:} 11... Bf5 12. Nc3 a6 13. Qd2 Rc8 14. c5 Bc7 15. Na2 Ng6 16. b4 Re8 17. g3 Qd7 18. Ne1 Bg4 19. Nc2 h5 20. Nc3 Bxe2 21. Qxe2 Qf5 22. Rfd1 Rcd8 23. Qd3 Qg4 24. Qe2 Qf5 25. Qd3 Qg4 26. Qe2 {½-½ (26) Murariu,A (2501)-Podinic,V (2428) Bucharest 2012}) 12. Nbd2 {[%emt 0:01:34]} Nf5 {[%emt 0:01:21]} 13. cxd5 {[%emt 0:03:19]} Bxd5 {[%emt 0:00:08] Black is slightly better.} 14. Bc4 {[%emt 0:00:34]} Nb4 {[%emt 0:03:11]} ({But not} 14... Nxe3 15. fxe3 Bb4 16. Qc2 $11) 15. Qb1 {[%emt 0:02:50]} Qd7 {[%emt 0:00:27]} 16. Bxd5 {[%emt 0:00:52]} Nxd5 {[%emt 0:00:09]} 17. Nc4 {[%emt 0:00:16]} Bb4 {[%emt 0:02:11]} ({Black should play} 17... f6 $15) 18. Nfe5 $2 {[%emt 0:00:46]} (18. Nce5 $1 $11 Qc8 19. Rc1) 18... Qe6 $17 {[%emt 0:00:19] White must now prevent ...Bc3.} 19. Qd3 {[%emt 0:03:43] [#]} f6 {[%emt 0:01:15]} ({Better is} 19... b5 $1 $19 {Hoping for ...f6.} 20. Bd2 bxc4 21. bxc4 Bxd2 22. cxd5 {[#]} Qxd5 $1 23. Qxf5 Bc3) 20. Nf3 $15 {[%emt 0:00:41]} Rfe8 {[%emt 0:02:15][%cal Rf5e3]} 21. Bd2 {[%emt 0:00:52]} Bxd2 {[%emt 0:00:25]} 22. Ncxd2 {[%emt 0:00:30]} Nf4 $36 {[%emt 0:00:45][%mdl 2048] Black is on the roll.} 23. Qc4 {[%emt 0:01:08]} Ne2+ {[%emt 0:01:07]} 24. Kh1 {[%emt 0:00:03]} Qxc4 {[%emt 0:00:11] 0x0.001988d59f09dp-1022s more active pieces.} 25. Nxc4 {[%emt 0:00:11]} Nexd4 {[%emt 0:00:17]} 26. Nxd4 {[%emt 0:01:07]} Nxd4 {[%emt 0:00:02]} 27. Nd6 {[%emt 0:00:59][%csl LRb7,LRe8]} Re7 {[%emt 0:00:11]} 28. Rfe1 $2 {[%emt 0:00:56]} (28. Rfb1 $17) 28... Rd7 $2 {[%emt 0:00:23]} (28... Rxe1+ $19 29. Rxe1 Nxb3) 29. Re8+ $2 {[%emt 0:00:30][%mdl 8192]} (29. Rxa7 $17 Rad8 30. Nc4) 29... Rxe8 $19 {[%emt 0:00:06] Black is clearly winning.} 30. Nxe8 {[%emt 0:00:03]} Kf7 {[%emt 0:00:11]} 31. Re1 {[%emt 0:00:14]} Nxb3 {[%emt 0:00:21]} 32. h3 {[%emt 0:00:11]} Nc5 {[%emt 0:00:10]} 33. Rc1 {[%emt 0:00:07]} b6 {[%emt 0:00:03]} 34. Re1 {[%emt 0:00:02]} Ne6 {[%emt 0:00:09] Weighted Error Value: White=0.75/Black=0.38} 0-1

[Event "Czech Open-Rapid 2022"]
[Site "Pardubice"]
[Date "2022.07.21"]
[Round "5.34"]
[White "Mlejnek, Stanislav"]
[Black "Dosedel, Jiri"]
[Result "0-1"]
[ECO "B07"]
[WhiteElo "1666"]
[BlackElo "2008"]
[Annotator "TA"]
[PlyCount "82"]
[EventDate "2022.07.20"]
[EventType "swiss"]
[EventCountry "CZE"]
[SourceTitle "playchess.com"]
[Source "ChessBase"]
[SourceQuality "1"]
[TimeControl "1200+10"]

{[%evp 9,82,46,51,33,47,50,58,47,102,0,0,-50,-52,-49,-40,-141,-70,-149,-154,-151,-143,-139,-142,-189,-187,-187,-181,-252,-237,-293,-267,-332,-310,-395,-383,-431,-390,-416,-387,-526,-522,-526,-522,-677,-665,-675,-678,-666,-691,-678,-679,-700,-661,-877,-850,-835,-793,-1059,-1045,-1072,-1064,-29976,-29976,-29978,-29979,-29979,-29980,-29981,-29981,-29981,-29982,-29982,-29982,-29982,-29982]} 1. e4 {[%emt 0:00:31]} d6 {[%emt 0:00:01]} 2. d4 {[%emt 0:00:08][%cal Bd2d4,Bd4e5][%mdl 32]} Nf6 {[%emt 0:00:05]} 3. Nc3 {[%emt 0:00:05]} g6 {[%emt 0:00:02]} 4. Be3 {[%emt 0:00:06]} c6 {[%emt 0:00:07]} 5. Qd2 {[%emt 0:00:07]} b5 {[%emt 0:00:01]} 6. e5 {[%emt 0:00:38] B07: Pirc Defence: Miscellaneous Systems.} dxe5 {[%emt 0:00:07]} 7. dxe5 {[%emt 0:00:03]} Qxd2+ {[%emt 0:00:11]} 8. Bxd2 {[%emt 0:00:21] White is slightly better.} Ng4 {[%emt 0:00:21] [#]} (8... Nfd7 $14) 9. Nf3 $146 {[%emt 0:00:33]} (9. f4 $1 $16) ({Predecessor:} 9. f4 h5 10. Nf3 Nd7 11. a4 b4 12. Ne4 a5 13. h3 Nh6 14. c3 e6 15. cxb4 axb4 {½-½ (23) Ulybin,M (2475)-Movsziszian,K (2502) Pontevedra 2016}) 9... Bg7 $1 $11 {[%emt 0:00:05]} 10. h3 {[%emt 0:03:08]} (10. a4 $11) 10... Nxe5 $15 {[%emt 0:00:04]} 11. Nxe5 {[%emt 0:00:49]} Bxe5 {[%emt 0:00:02]} 12. Bh6 {Black converts the advantage convincingly.} ({White should try} 12. g3 $15) 12... b4 {[%emt 0:02:40]} (12... Be6 $17 13. Be2 Nd7) 13. Ne4 {[%emt 0:01:23]} ({White should play} 13. Na4 $15) 13... Bf5 ({Worse is} 13... Bxb2 14. Rb1 Be5 15. Rxb4 $15) 14. Bd3 {[%emt 0:01:07]} Bxb2 {[%emt 0:00:49]} 15. Rb1 {[%emt 0:00:15]} Bxe4 16. Rxb2 {[%emt 0:00:54]} (16. Bxe4 $17 {was called for.} Bc3+ 17. Ke2) 16... Bxd3 $19 {[%emt 0:00:11]} 17. cxd3 {[%emt 0:00:02]} a5 {[%emt 0:00:07]} 18. O-O {[%emt 0:00:18]} (18. Rc2 {might work better.}) 18... Kd7 {[%emt 0:00:39]} 19. f4 {[%emt 0:01:18]} e6 {[%emt 0:01:11]} 20. d4 {[%emt 0:00:26]} Na6 {[%emt 0:00:04]} 21. Rc2 {[%emt 0:01:30]} Nc7 {[%emt 0:00:02]} 22. Rfc1 {[%emt 0:00:32]} Ra6 {[%emt 0:00:02]} 23. Bg7 {[%emt 0:01:10]} Rg8 {[%emt 0:00:03]} 24. Be5 {[%emt 0:00:10]} Nd5 {[%emt 0:00:05] Hoping for ...f6.} 25. f5 {[%emt 0:02:06]} gxf5 {[%emt 0:00:07]} 26. a3 {[%emt 0:00:49]} b3 {[%emt 0:00:21]} 27. Rb2 {[%emt 0:00:28]} a4 {[%emt 0:00:02]} 28. Kf2 {[%emt 0:00:54]} Ra5 {[%emt 0:00:51]} 29. Kf3 {[%emt 0:00:15]} Rc8 {[%emt 0:00:15]} 30. g4 {[%emt 0:00:12]} fxg4+ {[%emt 0:00:10]} 31. Kxg4 {[%emt 0:00:16]} c5 {[%emt 0:00:09]} 32. dxc5 {[%emt 0:01:02]} Raxc5 {[%emt 0:00:02]} 33. Rxc5 {[%emt 0:00:06]} Rxc5 {[%emt 0:00:02][%mdl 4096] Endgame KRB-KRN} 34. Kf3 {[%emt 0:01:23] Inhibits Ne3.} Rc2 {[%emt 0:01:02] White must now prevent ...Rxb2.} 35. h4 {[%emt 0:00:25]} f6 {[%emt 0:00:10] Black mates.} 36. Rxc2 {[%emt 0:00:17]} bxc2 {[%emt 0:00:20] KB-KN} 37. Bb2 {[%emt 0:00:08] [#]} Nc3 $1 {[%emt 0:00:08][%mdl 512]} 38. Ke3 {[%emt 0:00:36]} (38. Bc1 Na2) 38... Na2 {[%emt 0:00:02]} 39. Kd2 {[%emt 0:00:09]} c1=Q+ {[%emt 0:00:03]} 40. Bxc1 {[%emt 0:00:01]} Nxc1 {[%emt 0:00:02]} 41. Kxc1 {[%emt 0:00:02]} f5 {[%emt 0:00:04] Weighted Error Value: White=0.59/Black=0.09 (flawless)} 0-1

[Event "Czech Open-Rapid 2022"]
[Site "Pardubice"]
[Date "2022.07.21"]
[Round "5.35"]
[White "Rakhmangulova, Iulia"]
[Black "Zdrazil, Tomas"]
[Result "1-0"]
[ECO "B23"]
[WhiteElo "1904"]
[BlackElo "2122"]
[Annotator "NA RC"]
[PlyCount "82"]
[EventDate "2022.07.20"]
[EventType "swiss"]
[EventCountry "CZE"]
[SourceTitle "playchess.com"]
[Source "ChessBase"]
[SourceQuality "1"]
[TimeControl "1200+10"]

1. e4 {[%emt 0:00:01]} c5 {[%emt 0:00:01]} 2. Nc3 {[%emt 0:00:01]} e6 {[%emt 0:00:01]} 3. g3 {[%emt 0:00:02]} d5 {[%emt 0:00:02]} 4. exd5 {[%emt 0:00:03]} exd5 {[%emt 0:00:00]} 5. d4 cxd4 {[%emt 0:00:07]} 6. Qxd4 {[%emt 0:00:04]} Nf6 {[%emt 0:00:08]} 7. Bg2 {[%emt 0:00:09]} Nc6 {[%emt 0:00:21]} 8. Qd1 {[%emt 0:00:06]} d4 {[%emt 0:07:54]} 9. Nce2 {[%emt 0:00:17]} Bc5 {[%emt 0:00:31]} 10. Nf3 {[%emt 0:00:21]} O-O {[%emt 0:00:12]} 11. O-O {[%emt 0:00:08]} Bf5 {[%emt 0:01:22]} 12. a3 {[%emt 0:00:31]} a5 {[%emt 0:00:39]} 13. Nf4 {[%emt 0:01:37]} Qd7 {[%emt 0:01:01]} 14. Nd3 {[%emt 0:00:35]} Bb6 {[%emt 0:02:38]} 15. Bg5 {[%emt 0:04:09]} Ne4 {[%emt 0:04:39]} 16. Bf4 {[%emt 0:01:04]} f6 {[%emt 0:01:22]} 17. Re1 {[%emt 0:00:18]} Nc5 {[%emt 0:00:14]} 18. Nxc5 {[%emt 0:01:03]} Bxc5 {[%emt 0:00:01]} 19. Nh4 {[%emt 0:02:17]} Bg4 {[%emt 0:00:16]} 20. Qd2 {[%emt 0:00:01]} Bb6 {[%emt 0:00:39]} 21. Re4 {[%emt 0:00:57]} Be6 {[%emt 0:00:26]} 22. Rae1 {[%emt 0:00:19]} Bd5 {[%emt 0:00:02]} 23. R4e2 {[%emt 0:00:39]} Bxg2 {[%emt 0:00:02]} 24. Nxg2 {[%emt 0:00:11]} g5 {[%emt 0:00:44]} 25. Bxg5 {[%emt 0:00:09]} fxg5 {[%emt 0:00:02]} 26. Qxg5+ {[%emt 0:00:01]} Qg7 {[%emt 0:00:05]} 27. Qb5 {[%emt 0:00:36]} Bd8 {[%emt 0:00:21]} 28. Re4 {[%emt 0:02:04]} Kh8 {[%emt 0:00:33]} 29. Nf4 {[%emt 0:00:55]} Qf7 {[%emt 0:00:01]} 30. h4 {[%emt 0:01:03]} Bc7 {[%emt 0:00:10]} 31. Qxb7 {[%emt 0:00:55]} Bxf4 {[%emt 0:00:09]} 32. Qxc6 {[%emt 0:00:11]} Rac8 {[%emt 0:00:20]} 33. Qb6 {[%emt 0:00:46]} Bb8 {[%emt 0:00:15]} 34. Qxd4+ {[%emt 0:00:05]} Qf6 {[%emt 0:00:13]} 35. Qd2 {[%emt 0:00:55]} Ba7 {[%emt 0:00:06]} 36. Rf4 {[%emt 0:00:23]} Qg7 {[%emt 0:00:09]} 37. Kg2 {[%emt 0:01:16]} Rxf4 {[%emt 0:00:04]} 38. Qxf4 {[%emt 0:00:03]} Rf8 {[%emt 0:00:02]} 39. Qe5 {[%emt 0:01:30]} Rxf2+ {[%emt 0:00:08]} 40. Kh3 {[%emt 0:00:14]} Qxe5 {[%emt 0:00:38]} 41. Rxe5 {[%emt 0:00:02]} Bb6 {[%emt 0:00:22]} 1-0